bitfinex/quotes_ETHUSD_20260228
["timestamp","ask_amount","ask_price","bid_price","bid_amount"]
[1772243672477,1.29559344,1929.7,1929.4,0.43386313]
[1772243673075,1.75732279,1929.7,1929.4,0.43386313]
[1772243673776,0.46172935,1929.6,1929.2,0.4338173]
[1772243673979,0.46172935,1929.5,1929.1,0.0011]
[1772243674174,0.46272935,1929.5,1929.1,0.0011]
[1772243674552,0.46272935,1929.5,1929.1,0.43489478]
[1772243676019,1.2957396,1929.4,1929.1,0.43489478]
[1772243683288,1.75845001,1929.5,1929.1,0.43489478]
[1772243685656,1.75845001,1929.5,1929.2,0.0011]
[1772243686054,1.75845001,1929.5,1929.2,0.43460533]
[1772243688289,1.29672066,1929.5,1929.2,0.43460533]
[1772243688688,1.29672066,1929.5,1929.4,0.43346767]
[1772243688689,0.001,1929.5,1929.4,0.43346767]
[1772243690005,0.001,1929.5,1929.3,1.29580624]
[1772243690166,4.03242021,1929.8,1929.5,0.43243087]
[1772243690570,0.49694918,1929.7,1929.4,0.8236757]
[1772243691505,0.49694918,1929.7,1929.2,1.72932629]
[1772243692501,0.49694918,1929.6,1929.2,1.72932629]
[1772243694700,0.49694918,1929.4,1929.2,0.0011]
[1772243697410,1.79268878,1929.4,1929.3,0.0011]
[1772243698806,1.7936619,1929.5,1929.3,0.0011]
[1772243699102,1.29671272,1929.5,1929.3,0.43337541]
[1772243699605,1.7936619,1929.5,1929.3,0.0011]
[1772243702315,0.001,1929.5,1929.3,0.43332708]
[1772243702520,0.001,1929.5,1929.3,0.40741122]
[1772243703223,0.001,1929.5,1929.4,0.40739547]
[1772243703516,1.29557983,1929.7,1929.4,0.40639547]
[1772243703715,1.79252901,1929.7,1929.4,0.40639547]
[1772243706724,3.54151845,1929.8,1929.4,0.40639547]
[1772243706896,4.03846763,1929.8,1929.4,0.40639547]
[1772243707219,0.49694918,1929.8,1929.5,0.40633429]
[1772243707421,2.74394918,1929.8,1929.5,0.40633429]
[1772243709847,0.001,1929.6,1929.5,0.40633429]
[1772243712913,0.50089502,1929.6,1929.4,0.0011]
[1772243714204,0.49989502,1929.5,1929.4,0.0011]
[1772243716232,0.50089502,1929.6,1929.4,0.0011]
[1772243718134,0.001,1929.6,1929.4,0.40726683]
[1772243722041,0.001,1929.6,1929.5,0.0011]
[1772243727749,0.001,1929.6,1929.5,0.40715562]
[1772243729657,0.49989502,1929.8,1929.5,0.40715562]
[1772243730020,1.79536657,1929.8,1929.5,0.40715562]
[1772243734349,0.001,1929.7,1929.5,0.40715562]
[1772243741941,0.4704298,1929.7,1929.5,0.0011]
[1772243742735,0.4704298,1929.7,1929.3,0.0011]
[1772243743436,0.4704298,1929.7,1929.3,0.40806507]
[1772243745857,1.29657386,1929.7,1929.4,0.0011]
[1772243746073,0.4694298,1929.6,1929.4,0.0011]
[1772243755773,1.76505067,1929.6,1929.4,0.0011]
[1772243755977,0.4694298,1929.6,1929.4,0.0011]
[1772243757574,0.4694298,1929.6,1929.5,0.0011]
[1772243757873,0.001,1929.9,1929.6,0.4068339]
[1772243758067,0.001,1930.3,1929.9,0.4068339]
[1772243758263,0.4704298,1930.3,1930.0,0.99355928]
[1772243758872,0.4704298,1930.3,1930.0,0.58672538]
[1772243759269,0.4694298,1930.2,1930.0,0.58672538]
[1772243759856,0.4694298,1930.2,1929.9,0.4068339]
[1772243760158,1.76463608,1930.2,1929.9,0.4068339]
[1772243761574,0.4694298,1930.2,1929.9,0.4068339]
[1772243762878,0.4704298,1930.3,1930.0,0.4068026]
[1772243763474,0.4694298,1930.2,1929.5,1.7035295]
[1772243765352,0.4694298,1930.0,1929.5,0.40789499]
[1772243765547,0.4694298,1929.9,1929.5,0.0011]
[1772243765949,0.4694298,1929.9,1929.4,0.0011]
[1772243767478,0.4694298,1929.7,1929.4,0.0011]
[1772243769379,2.253,1929.8,1929.5,0.40895118]
[1772243769779,2.7224298,1929.8,1929.5,0.40895118]
[1772243770360,1.74612818,1930.0,1929.6,0.40783723]
[1772243771871,1.29534057,1930.0,1929.6,0.40783723]
[1772243772051,1.74612818,1930.0,1929.6,0.40783723]
[1772243772960,1.74612506,1930.0,1929.6,1.70341019]
[1772243773158,1.74612506,1930.0,1929.6,0.40783723]
[1772243774884,0.45078761,1929.9,1929.5,0.0011]
[1772243775485,0.45078761,1929.9,1929.5,0.40890375]
[1772243775985,0.45078761,1929.9,1929.5,0.0011]
[1772243777068,0.45078761,1929.7,1929.5,0.0011]
[1772243778268,1.29547103,1929.8,1929.5,0.40888457]
[1772243778595,1.74625864,1929.8,1929.5,0.40888457]
[1772243781401,1.74625864,1929.8,1929.6,0.0011]
[1772243784900,1.29546465,1929.9,1929.6,0.40884232]
[1772243785100,1.74617055,1930.0,1929.6,0.40884232]
[1772243788625,1.29538294,1930.0,1929.6,0.40884232]
[1772243790185,1.74617055,1930.0,1929.6,0.40884232]
[1772243792984,0.001,1929.9,1929.6,0.40884232]
[1772243798303,0.001,1929.9,1929.7,0.40767236]
[1772243803540,0.47603622,1929.9,1929.6,0.0011]
[1772243805015,0.47503622,1929.8,1929.6,0.0011]
[1772243805821,0.001,1929.9,1929.6,0.40872973]
[1772243807228,0.47603622,1929.9,1929.6,0.40872973]
[1772243811009,1.77144364,1929.9,1929.6,0.40872973]
[1772243816609,0.001,1929.8,1929.6,0.40872973]
[1772243820250,0.001,1929.8,1929.7,0.40756783]
[1772243823746,0.47503622,1929.7,1929.5,0.0011]
[1772243823948,0.47503622,1929.5,1929.1,0.0011]
[1772243824243,0.47503622,1929.5,1929.0,0.00263886]
[1772243824551,2.264,1929.7,1929.0,0.00263886]
[1772243824552,0.47503622,1929.3,1929.0,0.00263886]
[1772243824758,0.47503622,1929.2,1929.0,0.00263886]
[1772243827145,0.47503622,1929.2,1929.0,0.00593886]
[1772243828021,0.47503622,1929.2,1929.1,0.0011]
[1772243829250,0.47503622,1929.1,1928.9,0.0011]
[1772243830552,0.47634325,1929.0,1928.9,0.0011]
[1772243841372,0.47634325,1929.2,1928.9,0.4107944]
[1772243842364,1.77221741,1929.2,1928.9,0.4107944]
[1772243843744,0.47634325,1929.2,1928.9,0.4107944]
[1772243844963,1.77222549,1929.2,1928.9,0.4107944]
[1772243849675,0.47634325,1929.2,1928.9,0.4107944]
[1772243850364,1.29585915,1929.3,1928.9,0.4107944]
[1772243850563,1.29585915,1929.3,1929.0,0.40966935]
[1772243850775,0.47634325,1929.2,1928.9,0.41076935]
[1772243851779,0.47634325,1929.1,1929.0,0.0011]
[1772243851965,0.47734325,1929.1,1929.0,0.0011]
[1772243852872,2.74334325,1929.5,1929.0,0.41076413]
[1772243853272,0.47634325,1929.4,1929.0,0.41076413]
[1772243861085,0.47634325,1929.4,1929.1,0.40963746]
[1772243864309,0.47634325,1929.4,1929.1,0.41073746]
[1772243864609,0.001,1929.3,1929.1,0.41073746]
[1772243875700,0.46912321,1929.3,1929.1,0.0011]
[1772243876216,0.46912321,1929.3,1929.2,0.0011]
[1772243880924,0.001,1929.3,1929.2,0.41069686]
[1772243881098,3.55961978,1929.6,1929.2,0.41069686]
[1772243881302,0.46812321,1929.5,1929.2,0.0011]
[1772243882122,0.46812321,1929.4,1929.0,0.0011]
[1772243882422,0.46812321,1929.2,1928.8,0.0011]
[1772243882629,0.46812321,1929.0,1928.3,0.41069507]
[1772243882926,2.85403758,1929.1,1928.3,0.41179507]
[1772243882927,0.46812321,1928.8,1928.3,0.41179507]
[1772243883108,1.76433309,1928.7,1928.4,0.0011]
[1772243886296,0.46812321,1928.6,1928.4,0.0011]
[1772243886496,0.46812321,1928.6,1928.2,1.70833238]
[1772243886723,0.46812321,1928.6,1928.3,0.0011]
[1772243887133,0.46812321,1928.5,1928.3,0.0011]
[1772243887430,0.46812321,1928.4,1928.3,0.0011]
[1772243887932,0.46812321,1928.4,1928.3,0.0022]
[1772243888341,2.269,1928.6,1928.3,0.41178473]
[1772243888549,2.269,1928.6,1928.4,0.41178473]
[1772243888834,2.73812321,1928.9,1928.4,0.41178473]
[1772243889128,0.46812321,1928.8,1928.5,0.41178307]
[1772243889431,0.46812321,1928.8,1928.5,0.41068307]
[1772243890732,0.49658394,1928.9,1928.6,0.41177982]
[1772243892438,0.49658394,1928.9,1928.6,1.70805341]
[1772243894308,0.001,1928.9,1928.7,0.41177354]
[1772243894627,0.001,1928.9,1928.7,0.41067354]
[1772243896949,0.001,1928.9,1928.8,0.4117705]
[1772243897247,4.05843908,1929.3,1928.8,0.4117705]
[1772243897425,0.49558394,1929.2,1928.9,0.41176901]
[1772243897626,0.49558394,1929.2,1928.8,0.0011]
[1772243897939,0.49558394,1929.2,1928.7,0.0011]
[1772243899548,0.49558394,1929.0,1928.7,0.0011]
[1772243900464,1.29694111,1929.1,1928.3,0.0011]
[1772243900465,0.49558394,1928.8,1928.3,0.0011]
[1772243900614,0.49558394,1928.8,1928.4,0.0011]
[1772243901835,0.49558394,1928.6,1928.4,0.0011]
[1772243903631,0.49558394,1928.5,1928.3,0.0011]
[1772243905625,0.49558394,1928.4,1928.3,0.0011]
[1772243906423,1.79199547,1928.4,1928.3,0.0011]
[1772243906833,0.49558394,1928.3,1928.1,0.0011]
[1772243908130,1.79212994,1928.2,1928.1,0.0011]
[1772243908427,0.49558394,1928.5,1928.1,0.0033]
[1772243908625,2.271,1928.4,1928.2,0.0022]
[1772243909120,2.76658394,1928.4,1928.2,0.0022]
[1772243911128,4.06299547,1928.4,1928.3,0.0011]
[1772243911326,0.49558394,1928.4,1928.3,0.0011]
[1772243911530,0.49558394,1928.5,1928.3,0.0033]
[1772243913938,1.79199547,1928.4,1928.3,0.0033]
[1772243915038,0.49558394,1928.4,1928.3,0.0033]
[1772243915240,2.76958394,1928.6,1928.3,0.41504491]
[1772243915425,4.06586471,1928.6,1928.4,0.0022]
[1772243917068,4.06586113,1928.6,1928.4,0.0022]
[1772243919065,2.76958394,1928.6,1928.4,0.0022]
[1772243919261,2.274,1928.6,1928.5,0.0022]
[1772243921663,2.274,1928.6,1928.5,0.41393571]
[1772243922640,2.72543145,1928.6,1928.5,0.0022]
[1772243926358,2.72543145,1928.6,1928.3,0.0011]
[1772243926559,2.72543145,1928.6,1928.4,0.0022]
[1772243931453,2.72543145,1928.6,1928.5,0.0022]
[1772243931659,2.72543145,1928.6,1928.4,0.0022]
[1772243935080,0.001,1928.5,1928.4,0.0022]
[1772243942165,0.001,1928.5,1928.4,0.41391524]
[1772243942573,5.18458727,1928.8,1928.5,0.41171524]
[1772243942574,2.282,1928.8,1928.5,0.41171524]
[1772243942776,2.282,1928.8,1928.5,0.41391524]
[1772243942983,2.73343145,1928.8,1928.5,0.41391524]
[1772243943958,0.45143145,1928.7,1928.5,0.0022]
[1772243947081,0.45143145,1928.7,1928.6,0.0011]
[1772243949179,1.74764133,1928.7,1928.6,0.0011]
[1772243949888,0.45143145,1928.7,1928.6,0.0011]
[1772243954197,0.45143145,1928.7,1928.6,0.0033]
[1772243956303,0.45143145,1928.7,1928.6,0.0011]
[1772243957097,3.5791936,1928.8,1928.6,0.0011]
[1772243957098,4.04588014,1928.8,1928.6,0.0011]
[1772243957298,4.04588014,1928.8,1928.6,0.0033]
[1772243962201,4.04588014,1928.8,1928.7,0.0022]
[1772243962506,4.04588014,1928.8,1928.6,0.0011]
[1772243964108,0.46668654,1928.7,1928.6,0.0011]
[1772243969414,1.76289642,1928.7,1928.5,0.0011]
[1772243970092,0.50002993,1928.6,1928.3,0.0011]
[1772243970289,0.50002993,1928.4,1928.3,0.0011]
[1772243971706,1.79644146,1928.4,1928.3,0.0011]
[1772243972916,1.29641153,1928.4,1927.8,0.0011]
[1772243973123,1.29641153,1928.4,1927.0,0.00153886]
[1772243973124,0.49947993,1927.8,1927.0,0.00153886]
[1772243973332,0.49947993,1927.4,1927.1,1.29902971]
[1772243973488,0.49947993,1927.4,1927.0,1.30056857]
[1772243973489,0.49947993,1927.3,1927.0,1.30056857]
[1772243973811,0.49947993,1927.1,1927.0,1.30056857]
[1772243974813,5.18867643,1927.3,1927.0,1.30165963]
[1772243974814,0.49947993,1927.3,1927.0,1.30165963]
[1772243975042,1.29718195,1927.3,1927.1,1.30012018]
[1772243975340,1.79666188,1927.3,1927.1,1.29902971]
[1772243977894,0.49947993,1927.3,1927.1,1.29902971]
[1772243979899,1.79663688,1927.3,1927.1,1.29902971]
[1772243982841,2.11647993,1927.4,1927.1,1.30011521]
[1772243983041,1.617,1927.4,1927.3,0.00108498]
[1772243983412,1.79653901,1927.5,1927.2,0.00218498]
[1772243983641,1.79653901,1927.5,1927.2,1.30121469]
[1772243984043,4.09940796,1927.7,1927.3,1.30011418]
[1772243984542,0.49947993,1927.6,1927.3,1.30011418]
[1772243984839,0.49947993,1927.6,1927.3,0.00108447]
[1772243985203,0.49947993,1927.6,1927.3,1.29902971]
[1772243985949,0.49947993,1927.3,1927.2,0.0011]
[1772243995155,1.79663138,1927.3,1927.2,0.0011]
[1772243996059,0.49947993,1927.3,1927.2,0.0011]
[1772243998916,0.49947993,1927.2,1927.0,0.00263886]
[1772243999026,1.29715145,1927.3,1926.4,5.19089089]
[1772243999027,0.4981605,1927.0,1926.4,0.00371627]
[1772243999228,1.7957159,1926.7,1926.4,0.00371627]
[1772243999450,1.7957159,1926.7,1926.2,0.00371627]
[1772243999640,0.4981605,1926.9,1926.3,0.00371627]
[1772243999850,3.60338219,1927.0,1926.0,1.29952971]
[1772243999851,0.4981605,1926.7,1926.0,1.29952971]
[1772244000051,0.4981605,1926.7,1926.1,0.00371584]
[1772244000261,0.4981605,1926.9,1926.1,0.00371584]
[1772244001466,0.4981605,1926.5,1926.1,0.00371584]
[1772244002536,5.19022162,1926.9,1926.1,0.00371584]
[1772244002537,1.79561115,1926.9,1926.1,0.00371584]
[1772244002945,1.29745065,1926.9,1926.1,0.00371584]
[1772244003160,0.4981605,1926.8,1926.1,0.00371584]
[1772244003354,0.4981605,1926.8,1926.1,1.2979596]
[1772244003564,1.79565494,1926.8,1926.2,0.00371459]
[1772244003860,0.4981605,1926.7,1926.2,0.00371459]
[1772244005279,0.4981605,1927.1,1926.3,0.00371377]
[1772244005567,1.79545889,1927.1,1926.4,0.00371377]
[1772244006138,0.4981605,1927.1,1926.5,0.00371337]
[1772244007037,1.7954557,1927.1,1926.5,0.00371337]
[1772244007228,0.4981605,1927.1,1926.5,0.00371337]
[1772244008050,2.304,1927.4,1926.7,0.00371259]
[1772244008245,1.79571133,1927.5,1926.7,0.00371259]
[1772244008460,0.4986605,1927.4,1926.7,0.00371259]
[1772244009646,0.4986605,1927.4,1926.8,0.0027122]
[1772244009937,1.79574921,1927.4,1926.9,0.0027122]
[1772244011161,0.4986605,1927.4,1926.9,0.0027122]
[1772244011845,1.79574649,1927.4,1926.9,1.30013292]
[1772244012045,1.79574649,1927.4,1927.0,0.0027107]
[1772244012731,0.4986605,1927.5,1927.0,0.0027107]
[1772244015272,0.4986605,1927.4,1927.0,0.0027107]
[1772244016845,5.18763822,1927.7,1927.0,0.0027107]
[1772244017049,0.4986605,1927.6,1927.0,0.0027107]
[1772244017375,0.4986605,1927.6,1927.1,0.00270892]
[1772244017376,0.4986605,1927.5,1927.1,0.00270892]
[1772244019472,0.4986605,1927.5,1927.2,0.00270824]
[1772244020978,0.001,1927.4,1927.2,0.00270824]
[1772244023186,0.4986605,1927.8,1927.3,0.00270692]
[1772244024585,1.29674775,1927.9,1927.3,0.00270692]
[1772244024586,1.79554279,1927.7,1927.3,0.00270692]
[1772244026195,0.4986605,1927.7,1927.3,0.00270692]
[1772244030775,0.4986605,1927.9,1927.5,0.00270475]
[1772244032715,1.29678248,1927.9,1927.5,0.00270475]
[1772244032890,0.4986605,1927.8,1927.5,0.00270475]
[1772244033077,0.001,1927.6,1927.5,0.00270475]
[1772244033704,0.001,1927.6,1927.3,0.00270387]
[1772244034201,0.4996605,1927.6,1927.3,0.00270387]
[1772244037519,0.001,1927.6,1927.3,0.00270387]
[1772244038891,0.001,1927.6,1927.4,0.00270247]
[1772244039623,0.001,1927.6,1927.4,1.29978662]
[1772244039795,0.001,1927.6,1927.5,0.0027022]
[1772244040137,0.50019936,1928.0,1927.6,0.00270194]
[1772244040492,0.4986605,1927.9,1927.6,0.00270194]
[1772244042203,0.00153886,1928.0,1927.6,0.00270194]
[1772244042513,0.50019936,1928.0,1927.6,0.00270194]
[1772244043440,0.4986605,1927.9,1927.6,0.00270194]
[1772244046016,0.001,1927.8,1927.6,0.00270194]
[1772244054761,0.4986605,1927.7,1927.5,0.0011]
[1772244056865,0.4986605,1927.6,1927.5,0.0011]
[1772244057539,0.4981105,1927.5,1927.4,0.0011]
[1772244059654,1.79512736,1927.5,1927.4,0.0011]
[1772244062364,1.79512736,1927.5,1927.3,0.0011]
[1772244062365,0.4981105,1927.4,1927.3,0.0011]
[1772244062539,0.4981105,1927.4,1927.2,0.0011]
[1772244062743,0.4975605,1927.3,1927.2,0.0011]
[1772244064853,1.79471195,1927.3,1927.2,0.0011]
[1772244065945,0.4975605,1927.2,1926.8,0.0011]
[1772244066148,0.4975605,1926.8,1926.3,0.00489559]
[1772244066373,0.4975605,1926.8,1926.4,0.0011]
[1772244066795,0.4975605,1926.8,1926.5,0.0011]
[1772244067001,0.4975605,1926.7,1926.4,0.0011]
[1772244070274,4.08098145,1926.9,1926.5,0.00599466]
[1772244070474,0.4975605,1926.8,1926.5,0.00489466]
[1772244071905,0.4975605,1927.5,1926.7,0.00489448]
[1772244072078,0.4975605,1927.2,1926.7,0.00489448]
[1772244072276,0.4985605,1927.2,1926.8,0.0011]
[1772244072704,0.4985605,1927.2,1926.8,0.0059943]
[1772244073300,0.4985605,1927.2,1926.8,0.0011]
[1772244073608,0.4985605,1927.2,1926.8,0.00599413]
[1772244074710,0.4985605,1927.2,1926.8,0.00489413]
[1772244074904,0.4975605,1927.1,1926.8,0.00489413]
[1772244075408,0.4975605,1927.1,1926.8,0.0011]
[1772244076482,1.29729983,1927.1,1926.6,0.00599361]
[1772244076684,0.4975605,1927.0,1926.7,0.0011]
[1772244077184,0.4975605,1926.9,1926.6,0.0011]
[1772244077420,0.4975605,1926.9,1926.7,0.0011]
[1772244077986,0.4975605,1926.9,1926.6,0.0011]
[1772244078198,0.4975605,1926.9,1926.6,0.0022]
[1772244079927,0.4975605,1926.8,1926.6,0.0022]
[1772244080912,0.4975605,1926.8,1926.6,0.0011]
[1772244082928,0.4975605,1926.7,1926.6,0.0011]
[1772244083123,0.4975605,1926.7,1926.5,0.0011]
[1772244084219,0.4975605,1926.7,1926.3,0.0011]
[1772244084417,0.4975605,1926.7,1926.3,0.0022]
[1772244084828,1.29762275,1926.6,1926.4,0.0011]
[1772244085029,0.4970105,1926.5,1926.4,0.0011]
[1772244089131,1.79470061,1926.5,1926.4,0.0011]
[1772244089356,1.79470061,1926.5,1926.4,0.0022]
[1772244089557,1.79470061,1926.5,1926.3,0.0011]
[1772244089558,0.4959105,1926.4,1926.3,0.0011]
[1772244089720,0.4959105,1926.2,1926.0,0.00263886]
[1772244089920,0.4959105,1926.2,1926.0,0.00483886]
[1772244091027,1.29790667,1926.2,1926.0,0.00483886]
[1772244091336,0.4959105,1926.1,1926.0,0.00483886]
[1772244093724,0.4959105,1926.4,1926.1,0.008191]
[1772244093930,0.4959105,1926.6,1926.2,0.008191]
[1772244094124,0.4959105,1926.6,1926.2,0.010391]
[1772244095146,0.4959105,1926.6,1926.3,0.0022]
[1772244097087,0.4959105,1926.5,1926.3,0.0022]
[1772244100269,0.4959105,1926.5,1926.4,0.0022]
[1772244100584,3.58855681,1926.7,1926.3,0.00928982]
[1772244100754,0.4959105,1926.6,1926.3,0.01038982]
[1772244101485,0.4959105,1926.6,1926.3,0.0022]
[1772244102153,0.4959105,1926.5,1926.3,0.0022]
[1772244102970,0.4959105,1926.5,1926.1,0.0011]
[1772244103279,0.4959105,1926.5,1926.2,0.0022]
[1772244103484,4.08446746,1926.7,1926.3,0.00818945]
[1772244103668,0.4959105,1926.6,1926.3,0.01038945]
[1772244104070,1.79353343,1926.6,1926.3,0.01038945]
[1772244104477,0.4959105,1926.5,1926.3,0.0022]
[1772244104706,0.4959105,1926.5,1926.3,0.0011]
[1772244106292,0.4959105,1926.5,1926.2,0.00818933]
[1772244106492,0.4959105,1926.5,1926.3,0.0011]
[1772244107203,0.4959105,1926.4,1926.3,0.0011]
[1772244107403,0.4953605,1926.2,1926.0,0.00263886]
[1772244107705,0.4953605,1926.2,1926.0,0.00373886]
[1772244108363,2.293,1926.3,1926.0,0.00373886]
[1772244108364,1.7933201,1926.1,1926.0,0.00373886]
[1772244108567,0.4953605,1926.1,1926.0,0.00373886]
[1772244109280,0.4963605,1926.1,1926.0,0.00373886]
[1772244111291,0.001,1926.1,1926.0,0.01302738]
[1772244111471,0.001,1926.1,1926.0,0.00373886]
[1772244113717,0.4963605,1926.1,1926.0,0.00373886]
[1772244116092,0.001,1926.1,1926.0,0.00373886]
[1772244118917,1.79356287,1926.5,1926.1,0.00828778]
[1772244119123,0.4958605,1926.5,1926.1,0.00938778]
[1772244119523,0.4958605,1926.5,1926.2,0.00938768]
[1772244119726,0.4958605,1926.5,1926.2,0.00828768]
[1772244120021,0.4958605,1926.5,1926.1,0.00938768]
[1772244120022,0.4958605,1926.4,1926.1,0.00938768]
[1772244120225,0.4958605,1926.4,1926.2,0.0011]
[1772244121401,0.4958605,1926.3,1925.8,0.0011]
[1772244121601,0.4958605,1926.1,1925.8,0.0011]
[1772244122203,0.4958605,1925.9,1925.8,0.0011]
[1772244127640,1.79395489,1925.9,1925.8,0.0011]
[1772244128443,0.4958605,1926.1,1925.8,0.0011]
[1772244128647,0.4968605,1926.4,1925.9,0.00828682]
[1772244128816,0.001,1926.4,1925.9,0.00828682]
[1772244129016,0.001,1926.4,1926.1,0.00828682]
[1772244131341,0.4968605,1926.4,1926.1,0.00828682]
[1772244131648,0.001,1926.4,1926.1,1.30624148]
[1772244131830,0.001,1926.4,1926.2,0.00828647]
[1772244133449,0.4968605,1926.4,1926.0,0.0082863]
[1772244133818,0.001,1926.3,1926.0,0.0082863]
[1772244136675,0.001,1926.3,1926.2,0.00828605]
[1772244137159,0.4968605,1926.3,1926.0,1.29797466]
[1772244138465,0.4968605,1926.3,1925.9,1.30743871]
[1772244139764,1.794702,1926.3,1925.9,0.00938597]
[1772244139948,0.4958605,1926.2,1925.9,0.00938597]
[1772244142594,0.4958605,1926.2,1925.9,1.30747241]
[1772244143385,0.001,1926.3,1926.0,0.0082855]
[1772244143578,0.4968605,1926.3,1926.0,0.0082855]
[1772244144445,0.001,1926.3,1926.0,0.40077955]
[1772244144668,0.001,1926.3,1926.1,0.00828543]
[1772244145558,0.4968605,1926.3,1926.0,0.0011]
[1772244145786,0.4968605,1926.2,1926.0,0.0011]
[1772244146781,1.7947578,1926.2,1926.0,0.0011]
[1772244148084,0.4958605,1926.1,1925.9,0.0011]
[1772244148486,0.001,1926.2,1925.9,0.01048513]
[1772244148487,0.4963105,1926.2,1925.9,0.01048513]
[1772244149083,0.4963105,1926.2,1925.9,1.30856107]
[1772244149676,0.4963105,1926.2,1925.9,0.01048513]
[1772244151557,0.4963105,1926.2,1925.9,0.0011]
[1772244152190,0.4953105,1926.1,1925.9,0.0011]
[1772244154991,0.001,1926.2,1926.0,0.00938472]
[1772244157504,0.4968105,1926.8,1926.1,0.00838453]
[1772244157681,1.79429943,1926.8,1926.4,0.00838453]
[1772244157887,0.4958105,1926.7,1926.4,0.00838453]
[1772244158677,0.4958105,1926.7,1926.3,0.39249405]
[1772244158889,0.4958105,1926.7,1926.2,0.00838446]
[1772244160509,0.4958105,1926.5,1926.1,1.29793529]
[1772244160702,0.4958105,1926.5,1926.1,1.30631951]
[1772244160901,0.4958105,1926.5,1926.1,1.69881356]
[1772244170121,0.001,1926.4,1926.1,1.69881356]
[1772244172041,0.4958105,1926.3,1925.9,0.0011]
[1772244172335,0.4958105,1926.1,1925.9,0.0011]
[1772244174341,0.4958105,1926.0,1925.9,0.0011]
[1772244174519,1.79365851,1926.3,1925.9,0.00948344]
[1772244174724,0.4958105,1926.2,1926.0,6.88360277]
[1772244176844,0.4958105,1926.2,1925.6,0.39249405]
[1772244176845,0.4958105,1926.1,1925.0,0.00992219]
[1772244177150,0.4958105,1926.0,1925.6,1.30147449]
[1772244178247,0.4958105,1926.0,1925.3,0.00838328]
[1772244178423,0.4958105,1926.0,1925.4,1.30147449]
[1772244178960,0.4958105,1925.7,1925.4,1.30147449]
[1772244180858,1.79407241,1925.7,1925.4,1.30147449]
[1772244181048,0.4958105,1925.6,1925.4,1.30147449]
[1772244181830,0.4958105,1925.6,1925.5,0.0011]
[1772244182432,0.39249405,1925.9,1925.5,0.00948304]
[1772244182433,1.29809642,1925.9,1925.5,0.00948304]
[1772244182627,1.79390692,1925.9,1925.6,1.30147449]
[1772244182971,0.4958105,1925.9,1925.6,1.30985753]
[1772244183432,1.79390515,1925.9,1925.6,1.30985753]
[1772244183635,1.79390515,1925.9,1925.6,1.30147449]
[1772244183636,0.4958105,1925.8,1925.6,1.30147449]
[1772244184977,0.4958105,1925.7,1925.6,1.30147449]
[1772244185136,0.4958105,1925.7,1925.5,0.0011]
[1772244186458,0.4958105,1925.7,1924.5,0.00838286]
[1772244186459,0.4958105,1925.5,1924.5,0.00838286]
[1772244186659,0.4958105,1925.1,1924.6,1.30301335]
[1772244187066,0.4958105,1924.9,1924.6,1.30301335]
[1772244187574,5.19416104,1925.3,1924.9,0.00838281]
[1772244187575,0.4958105,1925.3,1924.9,0.00838281]
[1772244187771,0.4958105,1925.2,1925.0,1.29769174]
[1772244187948,0.4958105,1925.2,1924.6,1.29896121]
[1772244188150,0.4958105,1925.2,1924.7,2.90969174]
[1772244189146,0.4958105,1925.1,1924.8,1.29769174]
[1772244190153,1.29862111,1925.2,1924.3,0.00838264]
[1772244190154,0.4958105,1925.0,1924.3,0.00838264]
[1772244190468,0.4958105,1924.9,1924.4,1.29769174]
[1772244191378,0.4958105,1924.7,1924.5,1.29769174]
[1772244191577,0.4958105,1924.7,1924.4,1.29769174]
[1772244192085,0.4958105,1925.1,1924.7,0.0083826]
[1772244192576,0.4958105,1925.1,1924.8,1.29769174]
[1772244192746,0.4958105,1925.1,1924.7,1.29769174]
[1772244193156,0.4958105,1925.4,1924.9,1.29876876]
[1772244193359,0.4958105,1925.8,1925.1,0.00838252]
[1772244193543,0.4958105,1925.8,1925.1,1.62238252]
[1772244193761,0.4958105,1925.7,1925.1,1.62238252]
[1772244194346,0.4958105,1925.7,1925.2,1.29769174]
[1772244194850,0.4958105,1925.7,1925.3,1.29769174]
[1772244195381,0.4958105,1925.7,1925.3,2.59613893]
[1772244196058,0.001,1925.8,1925.5,0.00838244]
[1772244196589,0.4958105,1925.7,1925.6,1.29769174]
[1772244196787,0.4958105,1925.7,1925.4,1.29769174]
[1772244196995,0.001,1925.8,1925.3,1.30607414]
[1772244197197,0.4968105,1925.8,1925.3,1.30607414]
[1772244197399,0.4968105,1925.8,1925.4,1.29843149]
[1772244197700,0.4968105,1925.8,1925.4,2.91343149]
[1772244198261,1.08489907,1925.7,1924.6,5.19563766]
[1772244198582,0.4958105,1925.4,1924.7,1.17114529]
[1772244198783,0.4958105,1925.4,1924.7,1.16276297]
[1772244199495,0.4958105,1925.2,1924.8,1.29883624]
[1772244199989,0.4958105,1925.5,1924.9,1.17114525]
[1772244200192,0.4958105,1925.5,1925.0,0.00838224]
[1772244200487,0.4958105,1925.5,1924.9,1.16276297]
[1772244201291,0.4958105,1925.5,1925.0,1.616]
[1772244201495,1.29843149,1925.4,1924.9,2.46150141]
[1772244201696,0.4958105,1925.3,1924.5,1.6171]
[1772244201899,0.4958105,1925.3,1924.5,2.91612911]
[1772244202907,0.4958105,1925.3,1924.6,1.16276297]
[1772244203094,0.4958105,1925.3,1924.6,1.1711451]
[1772244203285,0.4958105,1925.3,1924.6,1.16276297]
[1772244203485,0.4958105,1925.3,1924.7,0.00838213]
[1772244204614,1.79437688,1925.2,1924.7,1.30725987]
[1772244204799,1.79437688,1925.2,1924.8,1.16276297]
[1772244207684,1.79437688,1925.2,1924.9,0.0011]
[1772244208199,0.4958105,1925.1,1924.9,0.0011]
[1772244209999,0.4958105,1925.0,1924.8,0.0011]
[1772244213000,1.2986825,1925.1,1924.8,0.0011]
[1772244213794,1.79420954,1925.1,1924.8,0.0011]
[1772244216399,0.49552704,1925.0,1924.8,0.0011]
[1772244217106,1.79420954,1925.1,1924.8,0.0011]
[1772244217804,0.49552704,1925.1,1924.8,0.0011]
[1772244218123,0.49552704,1925.3,1924.4,0.0011]
[1772244218278,0.49552704,1925.3,1924.5,0.01058163]
[1772244219907,1.79407771,1925.3,1924.7,0.0105816]
[1772244220107,1.79407771,1925.3,1924.8,0.01058157]
[1772244221084,0.4947105,1925.2,1924.9,0.0011]
[1772244221387,0.001,1925.0,1924.9,0.0011]
[1772244221814,0.001,1925.0,1924.9,0.01168148]
[1772244224134,0.001,1925.0,1924.9,0.0011]
[1772244225834,1.29855067,1925.3,1924.9,0.01168137]
[1772244226026,5.68868385,1925.4,1924.9,0.01168137]
[1772244226027,1.79318198,1925.4,1924.9,0.01168137]
[1772244226727,0.4947105,1925.3,1924.9,0.01168137]